[Event "Titled Tuesday Blitz June 27 Early 2023"]
[White "Ahmad, Khagan"]
[Black "NLLO777"]
[WhiteFideId "13431552"]
[WhiteElo "2615"]
[BlackElo "2481"]
[Result "1-0"]
[Round "8"]
[TimeControl "180+2"]
[Date "2023.06.27"]
[WhiteClock "0:00:14"]
[BlackClock "0:00:15"]
[Board "87"]

1. e4 {[%clk 0:02:59]}  c5 {[%clk 0:02:59]} 2. Nf3 {[%clk 0:02:59]}  d6 {[%clk 0:02:59]} 3. d4 {[%clk 0:02:59]}  cxd4 {[%clk 0:03:00]} 4. Nxd4 {[%clk 0:03:00]}  Nf6 {[%clk 0:03:00]} 5. Nc3 {[%clk 0:03:00]}  a6 {[%clk 0:03:01]} 6. Be3 {[%clk 0:02:59]}  e5 {[%clk 0:03:01]} 7. Nb3 {[%clk 0:03:00]}  Be6 {[%clk 0:03:01]} 8. f3 {[%clk 0:02:59]}  Be7 {[%clk 0:03:01]} 9. Qd2 {[%clk 0:02:52]}  O-O {[%clk 0:03:00]} 10. Be2 {[%clk 0:02:52]}  Nbd7 {[%clk 0:03:01]} 11. O-O {[%clk 0:02:53]}  Rc8 {[%clk 0:03:00]} 12. Nd5 {[%clk 0:02:52]}  Nxd5 {[%clk 0:02:57]} 13. exd5 {[%clk 0:02:52]}  Bf5 {[%clk 0:02:58]} 14. c4 {[%clk 0:02:51]}  b6 {[%clk 0:02:56]} 15. f4 {[%clk 0:02:41]}  exf4 {[%clk 0:02:35]} 16. Bxf4 {[%clk 0:02:38]}  Bg6 {[%clk 0:02:34]} 17. Nd4 {[%clk 0:02:36]}  Ne5 {[%clk 0:02:16]} 18. Rac1 {[%clk 0:02:24]}  Bf6 {[%clk 0:02:13]} 19. b4 {[%clk 0:02:15]}  Qd7 {[%clk 0:01:58]} 20. h3 {[%clk 0:02:12]}  Rc7 {[%clk 0:01:52]} 21. Rc3 {[%clk 0:01:39]}  Rfc8 {[%clk 0:01:51]} 22. Rfc1 {[%clk 0:01:39]}  h6 {[%clk 0:01:35]} 23. Qd1 {[%clk 0:00:58]}  Qe7 {[%clk 0:01:16]} 24. Qd2 {[%clk 0:00:39]}  Bg5 {[%clk 0:01:14]} 25. Bxg5 {[%clk 0:00:38]}  Qxg5 {[%clk 0:01:15]} 26. Qxg5 {[%clk 0:00:38]}  hxg5 {[%clk 0:01:16]} 27. Bf3 {[%clk 0:00:33]}  Rxc4 {[%clk 0:01:06]} 28. Nc6 {[%clk 0:00:28]}  Rxc3 {[%clk 0:00:57]} 29. Rxc3 {[%clk 0:00:29]}  Re8 {[%clk 0:00:48]} 30. Ra3 {[%clk 0:00:25]}  Bd3 {[%clk 0:00:37]} 31. Nxe5 {[%clk 0:00:24]}  dxe5 {[%clk 0:00:33]} 32. Rxd3 {[%clk 0:00:22]}  e4 {[%clk 0:00:34]} 33. Re3 {[%clk 0:00:22]}  f5 {[%clk 0:00:34]} 34. Bh5 {[%clk 0:00:20]}  Rd8 {[%clk 0:00:31]} 35. Bd1 {[%clk 0:00:20]}  Kf7 {[%clk 0:00:29]} 36. Bb3 {[%clk 0:00:18]}  Kf6 {[%clk 0:00:29]} 37. Kf2 {[%clk 0:00:17]}  Ke5 {[%clk 0:00:29]} 38. Rc3 {[%clk 0:00:18]}  f4 {[%clk 0:00:24]} 39. Rc6 {[%clk 0:00:17]}  a5 {[%clk 0:00:21]} 40. b5 {[%clk 0:00:14]}  a4 {[%clk 0:00:19]} 41. Bc4 {[%clk 0:00:11]}  Kd4 {[%clk 0:00:19]} 42. d6 {[%clk 0:00:10]}  a3 {[%clk 0:00:11]} 43. Be6 {[%clk 0:00:10]}  Ke5 {[%clk 0:00:11]} 44. d7 {[%clk 0:00:10]}  Kf6 {[%clk 0:00:10]} 45. Rc8 {[%clk 0:00:10]}  Ke7 {[%clk 0:00:11]} 46. Rxd8 {[%clk 0:00:11]}  Kxd8 {[%clk 0:00:12]} 47. Ke2 {[%clk 0:00:10]}  Ke7 {[%clk 0:00:12]} 48. Bf5 {[%clk 0:00:11]}  g6 {[%clk 0:00:12]} 49. Bxg6 {[%clk 0:00:10]}  Kxd7 {[%clk 0:00:12]} 50. Bxe4 {[%clk 0:00:11]}  Kd6 {[%clk 0:00:13]} 51. Kf3 {[%clk 0:00:12]}  Kc5 {[%clk 0:00:14]} 52. Bc6 {[%clk 0:00:11]}  Kd4 {[%clk 0:00:12]} 53. Kg4 {[%clk 0:00:11]}  Kc3 {[%clk 0:00:10]} 54. Kxg5 {[%clk 0:00:11]}  Kb2 {[%clk 0:00:11]} 55. Bd5 {[%clk 0:00:12]}  f3 {[%clk 0:00:10]} 56. gxf3 {[%clk 0:00:13]}  Ka1 {[%clk 0:00:09]} 57. f4 {[%clk 0:00:11]}  Kb1 {[%clk 0:00:10]} 58. f5 {[%clk 0:00:12]}  Ka1 {[%clk 0:00:11]} 59. Bb3 {[%clk 0:00:13]}  Kb1 {[%clk 0:00:12]} 60. f6 {[%clk 0:00:14]}  Ka1 {[%clk 0:00:13]} 61. f7 {[%clk 0:00:14]}  Kb1 {[%clk 0:00:14]} 62. f8=Q {[%clk 0:00:15]}  Ka1 {[%clk 0:00:14]} 63. Qf2 {[%clk 0:00:14]}  Kb1 {[%clk 0:00:15]} 64. Qd2 {[%clk 0:00:13]}  Ka1 {[%clk 0:00:15]} 65. Qc1# {[%clk 0:00:14]} 1-0


[Site "https://www.chess.com"]

[Event "Titled Tuesday Blitz June 27 Early 2023"]
[White "Girya, Olga"]
[Black "Boraso, Alessio"]
[WhiteFideId "4195752"]
[BlackFideId "848077"]
[WhiteElo "2607"]
[BlackElo "2479"]
[Result "1-0"]
[Round "8"]
[TimeControl "180+2"]
[Date "2023.06.27"]
[WhiteClock "0:00:16"]
[BlackClock "0:00:50"]
[Board "88"]

1. d4 {[%clk 0:03:00]}  c5 {[%clk 0:03:00]} 2. d5 {[%clk 0:02:57]}  Nf6 {[%clk 0:03:01]} 3. Nc3 {[%clk 0:02:56]}  g6 {[%clk 0:03:01]} 4. e4 {[%clk 0:02:55]}  d6 {[%clk 0:03:02]} 5. Nf3 {[%clk 0:02:52]}  Bg7 {[%clk 0:03:02]} 6. h3 {[%clk 0:02:52]}  O-O {[%clk 0:03:01]} 7. Bd3 {[%clk 0:02:51]}  b5 {[%clk 0:03:02]} 8. Nxb5 {[%clk 0:02:40]}  c4 {[%clk 0:03:02]} 9. Bxc4 {[%clk 0:02:36]}  Nxe4 {[%clk 0:03:01]} 10. O-O {[%clk 0:02:34]}  Ba6 {[%clk 0:03:00]} 11. a4 {[%clk 0:02:24]}  Nd7 {[%clk 0:02:59]} 12. Nxd6 {[%clk 0:02:20]}  exd6 {[%clk 0:02:41]} 13. Bxa6 {[%clk 0:02:19]}  Rb8 {[%clk 0:02:41]} 14. Bb5 {[%clk 0:02:10]}  Ndf6 {[%clk 0:02:36]} 15. Nd4 {[%clk 0:02:07]}  Rb7 {[%clk 0:02:11]} 16. Nc6 {[%clk 0:02:04]}  Qc8 {[%clk 0:02:09]} 17. Ba6 {[%clk 0:02:02]}  Re8 {[%clk 0:02:02]} 18. Be3 {[%clk 0:01:53]}  Qc7 {[%clk 0:02:02]} 19. Bxb7 {[%clk 0:01:52]}  Qxb7 {[%clk 0:02:03]} 20. Rb1 {[%clk 0:01:47]}  Qd7 {[%clk 0:01:57]} 21. Bxa7 {[%clk 0:01:22]}  Nh5 {[%clk 0:01:54]} 22. Be3 {[%clk 0:01:19]}  Qf5 {[%clk 0:01:52]} 23. c4 {[%clk 0:01:15]}  Nf4 {[%clk 0:01:48]} 24. Qg4 {[%clk 0:01:10]}  Qxg4 {[%clk 0:01:38]} 25. hxg4 {[%clk 0:01:10]}  Ne2+ {[%clk 0:01:36]} 26. Kh2 {[%clk 0:01:06]}  N4g3 {[%clk 0:01:37]} 27. Rfe1 {[%clk 0:00:57]}  h5 {[%clk 0:01:36]} 28. Bg5 {[%clk 0:00:42]}  Be5 {[%clk 0:01:32]} 29. fxg3 {[%clk 0:00:20]}  Bxg3+ {[%clk 0:01:28]} 30. Kh1 {[%clk 0:00:19]}  Bxe1 {[%clk 0:01:27]} 31. Rxe1 {[%clk 0:00:19]}  Ng3+ {[%clk 0:01:17]} 32. Kh2 {[%clk 0:00:20]}  Rxe1 {[%clk 0:01:18]} 33. Kxg3 {[%clk 0:00:20]}  Re4 {[%clk 0:01:13]} 34. gxh5 {[%clk 0:00:20]}  gxh5 {[%clk 0:01:12]} 35. Be7 {[%clk 0:00:17]}  Rxc4 {[%clk 0:01:11]} 36. a5 {[%clk 0:00:17]}  Rc2 {[%clk 0:00:58]} 37. a6 {[%clk 0:00:16]}  Rxb2 {[%clk 0:00:58]} 38. a7 {[%clk 0:00:16]}  Ra2 {[%clk 0:00:59]} 39. Bxd6 {[%clk 0:00:17]}  f5 {[%clk 0:00:55]} 40. Bc7 {[%clk 0:00:17]}  Ra6 {[%clk 0:00:50]} 41. d6 {[%clk 0:00:16]} 1-0


[Site "https://www.chess.com"]

[Event "Titled Tuesday Blitz June 27 Early 2023"]
[White "Kielinkei"]
[Black "infinitypoint"]
[WhiteElo "2475"]
[BlackElo "2605"]
[Result "0-1"]
[Round "8"]
[TimeControl "180+2"]
[Date "2023.06.27"]
[WhiteClock "0:00:01"]
[BlackClock "0:00:13"]
[Board "89"]

1. d4 {[%clk 0:03:00]}  Nf6 {[%clk 0:02:19]} 2. Bg5 {[%clk 0:02:57]}  Ne4 {[%clk 0:02:19]} 3. h4 {[%clk 0:02:57]}  c5 {[%clk 0:02:18]} 4. d5 {[%clk 0:02:56]}  Qb6 {[%clk 0:02:17]} 5. Nd2 {[%clk 0:02:56]}  Nxg5 {[%clk 0:02:15]} 6. hxg5 {[%clk 0:02:55]}  Qxb2 {[%clk 0:02:15]} 7. Rh4 {[%clk 0:02:34]}  g6 {[%clk 0:02:12]} 8. Rb1 {[%clk 0:02:13]}  Qe5 {[%clk 0:02:10]} 9. e4 {[%clk 0:01:58]}  Bg7 {[%clk 0:02:03]} 10. Ngf3 {[%clk 0:01:56]}  Qc7 {[%clk 0:02:03]} 11. Bd3 {[%clk 0:01:43]}  d6 {[%clk 0:02:02]} 12. Nc4 {[%clk 0:01:37]}  Nd7 {[%clk 0:01:58]} 13. Kf1 {[%clk 0:01:31]}  a6 {[%clk 0:01:54]} 14. a4 {[%clk 0:01:30]}  b6 {[%clk 0:01:53]} 15. g3 {[%clk 0:01:22]}  Rb8 {[%clk 0:01:52]} 16. Na3 {[%clk 0:01:12]}  h6 {[%clk 0:01:46]} 17. Kg2 {[%clk 0:01:07]}  h5 {[%clk 0:01:43]} 18. Nd2 {[%clk 0:00:58]}  Ne5 {[%clk 0:01:40]} 19. f4 {[%clk 0:00:53]}  Ng4 {[%clk 0:01:33]} 20. Qe2 {[%clk 0:00:52]}  Qa7 {[%clk 0:01:04]} 21. Ndc4 {[%clk 0:00:46]}  O-O {[%clk 0:00:59]} 22. e5 {[%clk 0:00:44]}  dxe5 {[%clk 0:00:42]} 23. fxe5 {[%clk 0:00:42]}  Qd7 {[%clk 0:00:30]} 24. Nxb6 {[%clk 0:00:29]}  Rxb6 {[%clk 0:00:24]} 25. Rxb6 {[%clk 0:00:28]}  Qxd5+ {[%clk 0:00:24]} 26. Be4 {[%clk 0:00:24]}  Qxe5 {[%clk 0:00:20]} 27. Nc4 {[%clk 0:00:18]}  Qxg5 {[%clk 0:00:19]} 28. Rb8 {[%clk 0:00:15]}  Be6 {[%clk 0:00:18]} 29. Rxf8+ {[%clk 0:00:14]}  Bxf8 {[%clk 0:00:19]} 30. Kg1 {[%clk 0:00:06]}  Qc1+ {[%clk 0:00:17]} 31. Kg2 {[%clk 0:00:01]}  Bxc4 {[%clk 0:00:16]} 32. Qf3 {[%clk 0:00:02]}  Bf1+ {[%clk 0:00:14]} 33. Kh1 {[%clk 0:00:01]}  Bh3+ {[%clk 0:00:13]} 34. Qf1 {[%clk 0:00:01]}  Qxf1# {[%clk 0:00:13]} 0-1


[Site "https://www.chess.com"]

[Event "Titled Tuesday Blitz June 27 Early 2023"]
[White "robertoalejandro10"]
[Black "Lopez Gracia, Fernando"]
[BlackFideId "2207184"]
[WhiteElo "2593"]
[BlackElo "2468"]
[Result "1-0"]
[Round "8"]
[TimeControl "180+2"]
[Date "2023.06.27"]
[WhiteClock "0:00:46"]
[BlackClock "0:00:32"]
[Board "91"]

1. Nf3 {[%clk 0:03:00]}  d5 {[%clk 0:02:59]} 2. b3 {[%clk 0:03:00]}  Nf6 {[%clk 0:02:58]} 3. Bb2 {[%clk 0:03:01]}  c6 {[%clk 0:02:57]} 4. g3 {[%clk 0:03:00]}  Bg4 {[%clk 0:02:50]} 5. Bg2 {[%clk 0:02:59]}  Bxf3 {[%clk 0:02:49]} 6. Bxf3 {[%clk 0:02:59]}  Nbd7 {[%clk 0:02:50]} 7. O-O {[%clk 0:02:59]}  e5 {[%clk 0:02:50]} 8. Bg2 {[%clk 0:03:00]}  Be7 {[%clk 0:02:49]} 9. d3 {[%clk 0:03:00]}  O-O {[%clk 0:02:48]} 10. Nd2 {[%clk 0:03:00]}  Re8 {[%clk 0:02:47]} 11. a3 {[%clk 0:03:00]}  Qc7 {[%clk 0:02:47]} 12. c4 {[%clk 0:03:00]}  d4 {[%clk 0:02:45]} 13. b4 {[%clk 0:03:00]}  a5 {[%clk 0:02:44]} 14. b5 {[%clk 0:02:59]}  Nc5 {[%clk 0:02:40]} 15. a4 {[%clk 0:02:57]}  b6 {[%clk 0:02:34]} 16. Ba3 {[%clk 0:02:55]}  Rad8 {[%clk 0:02:35]} 17. Qc2 {[%clk 0:02:48]}  Bf8 {[%clk 0:02:24]} 18. Bxc6 {[%clk 0:02:43]}  Re6 {[%clk 0:02:21]} 19. Bg2 {[%clk 0:02:42]}  Rde8 {[%clk 0:02:14]} 20. Nb3 {[%clk 0:02:35]}  Nxb3 {[%clk 0:02:09]} 21. Qxb3 {[%clk 0:02:35]}  Bxa3 {[%clk 0:02:05]} 22. Qxa3 {[%clk 0:02:36]}  Rc8 {[%clk 0:02:01]} 23. Rac1 {[%clk 0:02:35]}  Nd7 {[%clk 0:02:01]} 24. Bh3 {[%clk 0:02:24]}  Ree8 {[%clk 0:01:47]} 25. c5 {[%clk 0:02:06]}  Nxc5 {[%clk 0:01:39]} 26. Bxc8 {[%clk 0:02:04]}  Qxc8 {[%clk 0:01:39]} 27. Rc4 {[%clk 0:02:03]}  Qg4 {[%clk 0:01:39]} 28. f3 {[%clk 0:01:54]}  Qg5 {[%clk 0:01:32]} 29. Rxc5 {[%clk 0:01:27]}  Qe3+ {[%clk 0:01:29]} 30. Rf2 {[%clk 0:01:27]}  bxc5 {[%clk 0:01:25]} 31. Qxc5 {[%clk 0:01:28]}  h5 {[%clk 0:01:19]} 32. b6 {[%clk 0:01:00]}  h4 {[%clk 0:01:12]} 33. b7 {[%clk 0:00:59]}  hxg3 {[%clk 0:00:41]} 34. hxg3 {[%clk 0:00:57]}  Qg5 {[%clk 0:00:41]} 35. Kg2 {[%clk 0:00:56]}  Rb8 {[%clk 0:00:34]} 36. Qc8+ {[%clk 0:00:48]}  Qd8 {[%clk 0:00:35]} 37. Qxd8+ {[%clk 0:00:48]}  Rxd8 {[%clk 0:00:35]} 38. Rf1 {[%clk 0:00:49]}  Kf8 {[%clk 0:00:33]} 39. Rc1 {[%clk 0:00:47]}  Rb8 {[%clk 0:00:32]} 40. Rc8+ {[%clk 0:00:46]} 1-0


[Site "https://www.chess.com"]

[Event "Titled Tuesday Blitz June 27 Early 2023"]
[White "Ibadov, Dashgyn"]
[Black "Pandey Srishti"]
[WhiteFideId "24107514"]
[BlackFideId "35093290"]
[WhiteElo "2590"]
[BlackElo "2450"]
[Result "1-0"]
[Round "8"]
[TimeControl "180+2"]
[Date "2023.06.27"]
[WhiteClock "0:00:07"]
[BlackClock "0:00:09"]
[Board "92"]

1. e4 {[%clk 0:03:00]}  e5 {[%clk 0:02:58]} 2. Nf3 {[%clk 0:03:00]}  Nc6 {[%clk 0:02:58]} 3. d4 {[%clk 0:03:01]}  exd4 {[%clk 0:02:58]} 4. Nxd4 {[%clk 0:03:02]}  Nf6 {[%clk 0:02:58]} 5. Nxc6 {[%clk 0:03:03]}  bxc6 {[%clk 0:02:59]} 6. e5 {[%clk 0:03:03]}  Qe7 {[%clk 0:03:00]} 7. Qe2 {[%clk 0:03:04]}  Nd5 {[%clk 0:03:00]} 8. c4 {[%clk 0:03:05]}  Ba6 {[%clk 0:03:00]} 9. b3 {[%clk 0:03:05]}  g6 {[%clk 0:02:21]} 10. g3 {[%clk 0:03:04]}  Bg7 {[%clk 0:02:20]} 11. Bb2 {[%clk 0:03:04]}  O-O {[%clk 0:02:17]} 12. Bg2 {[%clk 0:03:04]}  Rfe8 {[%clk 0:02:12]} 13. O-O {[%clk 0:03:02]}  Nb6 {[%clk 0:01:50]} 14. Re1 {[%clk 0:02:54]}  d5 {[%clk 0:01:46]} 15. Nd2 {[%clk 0:02:44]}  Rad8 {[%clk 0:01:45]} 16. Rac1 {[%clk 0:02:42]}  Qd7 {[%clk 0:01:30]} 17. Qe3 {[%clk 0:02:41]}  dxc4 {[%clk 0:01:29]} 18. Nxc4 {[%clk 0:02:41]}  Bxc4 {[%clk 0:01:10]} 19. bxc4 {[%clk 0:02:42]}  Qd2 {[%clk 0:01:10]} 20. Qxd2 {[%clk 0:02:25]}  Rxd2 {[%clk 0:01:11]} 21. Bxc6 {[%clk 0:02:26]}  Rb8 {[%clk 0:01:10]} 22. Rb1 {[%clk 0:02:14]}  Nxc4 {[%clk 0:01:03]} 23. Bc3 {[%clk 0:02:15]}  Rdd8 {[%clk 0:00:57]} 24. f4 {[%clk 0:02:07]}  Bf8 {[%clk 0:00:54]} 25. Kg2 {[%clk 0:02:05]}  Rb6 {[%clk 0:00:52]} 26. Bf3 {[%clk 0:01:58]}  Rd3 {[%clk 0:00:49]} 27. Rxb6 {[%clk 0:01:52]}  axb6 {[%clk 0:00:47]} 28. Rc1 {[%clk 0:01:52]}  Ba3 {[%clk 0:00:45]} 29. Be2 {[%clk 0:01:36]}  Re3 {[%clk 0:00:42]} 30. Rc2 {[%clk 0:01:34]}  Re4 {[%clk 0:00:20]} 31. Kf3 {[%clk 0:01:27]}  Re3+ {[%clk 0:00:19]} 32. Kg2 {[%clk 0:01:22]}  Re4 {[%clk 0:00:19]} 33. Kf3 {[%clk 0:01:01]}  Re3+ {[%clk 0:00:19]} 34. Kf2 {[%clk 0:01:00]}  Bc5 {[%clk 0:00:18]} 35. Kf1 {[%clk 0:01:01]}  Re4 {[%clk 0:00:17]} 36. Bd3 {[%clk 0:00:48]}  Ne3+ {[%clk 0:00:17]} 37. Ke2 {[%clk 0:00:45]}  Ra4 {[%clk 0:00:18]} 38. Rb2 {[%clk 0:00:41]}  Ra3 {[%clk 0:00:18]} 39. Bd2 {[%clk 0:00:40]}  Ng4 {[%clk 0:00:16]} 40. h3 {[%clk 0:00:37]}  Nf2 {[%clk 0:00:15]} 41. Bc4 {[%clk 0:00:24]}  Rxg3 {[%clk 0:00:15]} 42. e6 {[%clk 0:00:23]}  fxe6 {[%clk 0:00:14]} 43. Bxe6+ {[%clk 0:00:23]}  Kf8 {[%clk 0:00:15]} 44. Be1 {[%clk 0:00:20]}  Rg2 {[%clk 0:00:13]} 45. Kf1 {[%clk 0:00:20]}  Rh2 {[%clk 0:00:13]} 46. Bxf2 {[%clk 0:00:19]}  Rh1+ {[%clk 0:00:12]} 47. Kg2 {[%clk 0:00:20]}  Rc1 {[%clk 0:00:12]} 48. Bxc5+ {[%clk 0:00:21]}  Rxc5 {[%clk 0:00:13]} 49. Rd2 {[%clk 0:00:17]}  Ke7 {[%clk 0:00:13]} 50. Bd5 {[%clk 0:00:18]}  Rc3 {[%clk 0:00:12]} 51. Bf3 {[%clk 0:00:16]}  Kf6 {[%clk 0:00:12]} 52. Kg3 {[%clk 0:00:16]}  h5 {[%clk 0:00:12]} 53. h4 {[%clk 0:00:15]}  Kf5 {[%clk 0:00:12]} 54. Rd5+ {[%clk 0:00:15]}  Ke6 {[%clk 0:00:12]} 55. Re5+ {[%clk 0:00:15]}  Kf6 {[%clk 0:00:12]} 56. a4 {[%clk 0:00:14]}  Ra3 {[%clk 0:00:13]} 57. Re4 {[%clk 0:00:14]}  Kf5 {[%clk 0:00:12]} 58. Rc4 {[%clk 0:00:12]}  c5 {[%clk 0:00:12]} 59. Kf2 {[%clk 0:00:13]}  Ke6 {[%clk 0:00:12]} 60. Be4 {[%clk 0:00:12]}  Kf6 {[%clk 0:00:11]} 61. Bc2 {[%clk 0:00:07]}  Kf7 {[%clk 0:00:09]} 62. f5 {[%clk 0:00:07]}  gxf5 {[%clk 0:00:09]} 63. Rf4 {[%clk 0:00:08]}  Kf6 {[%clk 0:00:10]} 64. Rxf5+ {[%clk 0:00:08]}  Ke6 {[%clk 0:00:10]} 65. Rf3 {[%clk 0:00:02]}  Ra2 {[%clk 0:00:09]} 66. Re3+ {[%clk 0:00:02]}  Kd5 {[%clk 0:00:09]} 67. Re2 {[%clk 0:00:03]}  Kd4 {[%clk 0:00:09]} 68. Kf3 {[%clk 0:00:03]}  Ra3+ {[%clk 0:00:09]} 69. Kf4 {[%clk 0:00:03]}  Rh3 {[%clk 0:00:08]} 70. Kg5 {[%clk 0:00:04]}  Rg3+ {[%clk 0:00:08]} 71. Kxh5 {[%clk 0:00:04]}  Kc3 {[%clk 0:00:09]} 72. Kh6 {[%clk 0:00:04]}  c4 {[%clk 0:00:10]} 73. h5 {[%clk 0:00:04]}  Kb4 {[%clk 0:00:10]} 74. Bg6 {[%clk 0:00:05]}  c3 {[%clk 0:00:10]} 75. Kg7 {[%clk 0:00:05]}  Kxa4 {[%clk 0:00:10]} 76. h6 {[%clk 0:00:05]}  Kb3 {[%clk 0:00:10]} 77. h7 {[%clk 0:00:05]}  Rh3 {[%clk 0:00:08]} 78. h8=Q {[%clk 0:00:05]}  Rxh8 {[%clk 0:00:09]} 79. Kxh8 {[%clk 0:00:06]}  b5 {[%clk 0:00:09]} 80. Kg7 {[%clk 0:00:06]}  b4 {[%clk 0:00:10]} 81. Kf6 {[%clk 0:00:07]}  Ka3 {[%clk 0:00:11]} 82. Ke5 {[%clk 0:00:06]}  b3 {[%clk 0:00:12]} 83. Kd4 {[%clk 0:00:06]}  c2 {[%clk 0:00:12]} 84. Bxc2 {[%clk 0:00:06]}  bxc2 {[%clk 0:00:09]} 85. Rxc2 {[%clk 0:00:06]}  Kb3 {[%clk 0:00:10]} 86. Kd3 {[%clk 0:00:07]}  Kb4 {[%clk 0:00:09]} 87. Rc3 {[%clk 0:00:07]} 1-0


[Site "https://www.chess.com"]

[Event "Titled Tuesday Blitz June 27 Early 2023"]
[White "Gulkov, Igor A."]
[Black "Alinasab, Mobina"]
[WhiteFideId "4120973"]
[BlackFideId "12528897"]
[WhiteElo "2424"]
[BlackElo "2558"]
[Result "1-0"]
[Round "8"]
[TimeControl "180+2"]
[Date "2023.06.27"]
[WhiteClock "0:00:12"]
[BlackClock "0:00:08"]
[Board "96"]

1. Nf3 {[%clk 0:02:57]}  Nf6 {[%clk 0:02:59]} 2. c4 {[%clk 0:02:56]}  c5 {[%clk 0:02:59]} 3. Nc3 {[%clk 0:02:56]}  e6 {[%clk 0:02:59]} 4. g3 {[%clk 0:02:56]}  b6 {[%clk 0:02:59]} 5. Bg2 {[%clk 0:02:56]}  Bb7 {[%clk 0:03:00]} 6. O-O {[%clk 0:02:56]}  d6 {[%clk 0:03:00]} 7. b3 {[%clk 0:02:55]}  a6 {[%clk 0:03:00]} 8. d4 {[%clk 0:02:55]}  cxd4 {[%clk 0:03:00]} 9. Qxd4 {[%clk 0:02:55]}  Nbd7 {[%clk 0:03:00]} 10. Rd1 {[%clk 0:02:55]}  Qc7 {[%clk 0:03:00]} 11. e4 {[%clk 0:02:55]}  Be7 {[%clk 0:03:00]} 12. Ba3 {[%clk 0:02:53]}  Nc5 {[%clk 0:03:00]} 13. e5 {[%clk 0:02:54]}  dxe5 {[%clk 0:02:59]} 14. Qxe5 {[%clk 0:02:53]}  Qxe5 {[%clk 0:02:45]} 15. Nxe5 {[%clk 0:02:53]}  Bxg2 {[%clk 0:02:46]} 16. Kxg2 {[%clk 0:02:52]}  Rc8 {[%clk 0:02:47]} 17. f4 {[%clk 0:02:48]}  O-O {[%clk 0:02:29]} 18. Na4 {[%clk 0:02:39]}  b5 {[%clk 0:02:14]} 19. Nxc5 {[%clk 0:02:30]}  Bxc5 {[%clk 0:02:15]} 20. Bxc5 {[%clk 0:02:29]}  Rxc5 {[%clk 0:02:14]} 21. b4 {[%clk 0:02:29]}  Rc7 {[%clk 0:02:11]} 22. c5 {[%clk 0:02:29]}  Nd5 {[%clk 0:02:10]} 23. a3 {[%clk 0:02:28]}  Ne3+ {[%clk 0:02:09]} 24. Kf3 {[%clk 0:02:21]}  Nxd1 {[%clk 0:02:10]} 25. Rxd1 {[%clk 0:02:19]}  f6 {[%clk 0:02:11]} 26. Nd7 {[%clk 0:02:12]}  Re8 {[%clk 0:02:04]} 27. Rd6 {[%clk 0:02:10]}  Kf7 {[%clk 0:02:03]} 28. Nb6 {[%clk 0:01:53]}  Ke7 {[%clk 0:02:00]} 29. f5 {[%clk 0:01:14]}  Kf7 {[%clk 0:01:59]} 30. g4 {[%clk 0:01:10]}  exf5 {[%clk 0:01:52]} 31. gxf5 {[%clk 0:01:10]}  Re5 {[%clk 0:01:51]} 32. Kf4 {[%clk 0:01:05]}  g6 {[%clk 0:01:49]} 33. fxg6+ {[%clk 0:01:02]}  hxg6 {[%clk 0:01:50]} 34. Nd5 {[%clk 0:00:54]}  Rf5+ {[%clk 0:01:47]} 35. Ke4 {[%clk 0:00:49]}  Ra7 {[%clk 0:01:48]} 36. c6 {[%clk 0:00:48]}  Re5+ {[%clk 0:01:31]} 37. Kd4 {[%clk 0:00:47]}  Re6 {[%clk 0:01:20]} 38. Kc5 {[%clk 0:00:31]}  f5 {[%clk 0:00:28]} 39. c7 {[%clk 0:00:24]}  Rxc7+ {[%clk 0:00:26]} 40. Nxc7 {[%clk 0:00:23]}  Re2 {[%clk 0:00:21]} 41. Nd5 {[%clk 0:00:16]}  Rxh2 {[%clk 0:00:19]} 42. Rxa6 {[%clk 0:00:14]}  Rc2+ {[%clk 0:00:15]} 43. Kxb5 {[%clk 0:00:14]}  Rd2 {[%clk 0:00:16]} 44. Kc5 {[%clk 0:00:14]}  Kg7 {[%clk 0:00:12]} 45. b5 {[%clk 0:00:15]}  g5 {[%clk 0:00:12]} 46. b6 {[%clk 0:00:14]}  Rc2+ {[%clk 0:00:11]} 47. Kb5 {[%clk 0:00:13]}  Rc8 {[%clk 0:00:12]} 48. b7 {[%clk 0:00:13]}  Rb8 {[%clk 0:00:12]} 49. Kb6 {[%clk 0:00:13]}  g4 {[%clk 0:00:11]} 50. Nf4 {[%clk 0:00:12]}  Kf6 {[%clk 0:00:10]} 51. Ra4 {[%clk 0:00:12]}  Kg5 {[%clk 0:00:09]} 52. Kc7 {[%clk 0:00:12]}  Rxb7+ {[%clk 0:00:07]} 53. Kxb7 {[%clk 0:00:12]}  g3 {[%clk 0:00:08]} 54. Rb4 {[%clk 0:00:12]}  Kg4 {[%clk 0:00:08]} 55. a4 {[%clk 0:00:12]}  Kf3 {[%clk 0:00:08]} 56. a5 {[%clk 0:00:12]}  g2 {[%clk 0:00:08]} 57. Nxg2 {[%clk 0:00:11]}  Kxg2 {[%clk 0:00:08]} 58. a6 {[%clk 0:00:12]} 1-0


[Site "https://www.chess.com"]